Body Name,Body Code ,Service Label ,Service Code,Organisational Unit ,Expenditure Code,Payment Date,Transaction Number ,Net Payment ,Supplier Name,Supplier ID , , 
North West Leicestershire District Council ,31UH,Finance,EXCH,Exchequer Services,Recruitment - Agency Broker,04/01/2012,1227892,883.94,Comensura Limited,A036958, , 
North West Leicestershire District Council ,31UH,Finance,EXCH,Exchequer Services,Recruitment - Agency Broker,04/01/2012,1227893,"3,490.75",Comensura Limited,A036958,,
North West Leicestershire District Council ,31UH,Property Services,PROPCL,Property Commercial Lettings,Water - Sewerage services,04/01/2012,1227989,619.41,Severn Trent Water Limited,A001468,,
North West Leicestershire District Council ,31UH,Housing,HRAHM,HRA Housing Management,Grants,04/01/2012,1228037,"4,822.50",Care and Repair (West Leicestershire)Ltd,A033697,,
North West Leicestershire District Council ,31UH,Housing,HRAHM,HRA Housing Management,Fuel - solid,04/01/2012,1228061,"2,945.42",Coal4Energy Ltd,A031928,,
North West Leicestershire District Council ,31UH,Leisure & Culture,CULTIC,Cultural Services TIC,Events and Festivals,04/01/2012,1227813,"1,893,814.00",Ashby Dramatic Society Trust,A027431,,
North West Leicestershire District Council ,31UH,Environmental Health,EES,Environmental Services,Subscriptions -  Annual Revenue Contribution to Prospect Leics Ltd,04/01/2012,1227815,"4,695.29",Harborough District Council,A008631,,
North West Leicestershire District Council ,31UH,Environmental Health,EES,Environmental Services,Water - Sewerage services,04/01/2012,1228063,955.58,Severn Trent Water Limited,A001468,,
North West Leicestershire District Council ,31UH,Housing,HRAHM,HRA Housing Management,Fuel - solid,04/01/2012,1228065,"1,564.95",Coal4Energy Ltd,A031928,,
North West Leicestershire District Council ,31UH,Housing,HRAHM,HRA Housing Management,Grants,04/01/2012,1228038,"1,720.83",Care and Repair (West Leicestershire)Ltd,A033697,,
North West Leicestershire District Council ,31UH,Neighbourhoods & Communities,NACN,N & C Neighbourhoods,Grants,04/01/2012,1227707,"3,500.00",Mantle Community Arts Limited,A001039,,
North West Leicestershire District Council ,31UH,Information Technology,ICT,ICT Services,Photocopiers and consumables,04/01/2012,1227863,"2,234.75",Danwood Contract Rentals,A033719,,
North West Leicestershire District Council ,31UH,Housing Repairs,HRAHRM,HRA Housing Repairs & Maintenance,Building Services,04/01/2012,1227865,"5,095.02",J Tomlinson Ltd,A033342,,
North West Leicestershire District Council ,31UH,Housing,HRAHM,HRA Housing Management,Fuel - solid,04/01/2012,1228062,"4,360.88",Coal4Energy Ltd,A031928,,
North West Leicestershire District Council ,31UH,Corporate Director,HR,Human Resources,Advertising,04/01/2012,1227672,500.00,Redactive Publishing Ltd,A039060,,
North West Leicestershire District Council ,31UH,Street Management,ENOT,Environment Transport,Vehicles - Specialist Vehicle Electrical Components,04/01/2012,1227676,947.25,C F Parkinson Limited,A035550,,
North West Leicestershire District Council ,31UH,Street Management,ENOT,Environment Transport,Oil Products,04/01/2012,1226583,"3,068.05",Freedom Lubricants Ltd,A028311,,
North West Leicestershire District Council ,31UH,Street Management,ENOT,Environment Transport,Hire of |Gym,04/01/2012,1226856,"20,764.48",Pace Fuelcare Limited,A038908,,
North West Leicestershire District Council ,31UH,Planning & Development,EPP,Environment Planning Policy,road Maintenance,04/01/2012,1227881,874.00,Leicestershire County Council,A033304,,
North West Leicestershire District Council ,31UH,Environmental Health,EEHL,Environmental Health & Licensing,Fuel - key Fuel Systems,04/01/2012,1227680,500.00,Leicestershire County Council,A000950,,
North West Leicestershire District Council ,31UH,Street Management,ENOGT,Environment General Technician,Small civils and plant hire,04/01/2012,1227821,556.38,Cuckoo Gap Limited,A000438,,
North West Leicestershire District Council ,31UH,Street Management,ENOT,Environment Transport,Bags - Polythene bags manufacturer,04/01/2012,1227823,595.00,BPI Recycled Products,A017624,,
North West Leicestershire District Council ,31UH,Housing Strategy,HS,Community - Housing Strategy,Accommodation - Bed and Breakfast,04/01/2012,1227845,770.00,The Cedars,A027796,,
North West Leicestershire District Council ,31UH,Street Management,ENOT,Environment Transport,Refuse collection - Vehicle Lift - Service Contract,04/01/2012,1227859,"1,040.00",Maha UK Limited,A031879,,
North West Leicestershire District Council ,31UH,Finance,FINPLA,Financial Planning,Training,04/01/2012,1227861,"13,450.00",Hinckley & Bosworth Borough Council,A000770,,
North West Leicestershire District Council ,31UH,Neighbourhoods & Communities,NACCS,N & C Community Safety,Fuel - key Fuel Systems,04/01/2012,1227642,"2,500.00",Leicestershire County Council,A000950,,
North West Leicestershire District Council ,31UH,Corporate Director,HR,Human Resources,Consultancy,04/01/2012,1227688,"1,701.45",Libby Carter Limited,A033121,,
North West Leicestershire District Council ,31UH,Planning & Development,EDC,Environment - Development Control,Performing Artist,04/01/2012,1227818,900.60,Planning Inquiry Administration Services,A038890,,
North West Leicestershire District Council ,31UH,Street Management,ENOT,Environment Transport,Hire of |Gym,04/01/2012,1227825,"13,526.55",Pace Fuelcare Limited,A038908,,
North West Leicestershire District Council ,31UH,Housing Strategy,HS,Community - Housing Strategy,Accommodation - Bed and Breakfast,04/01/2012,1227844,"1,040.00",The Cedars,A027796,,
North West Leicestershire District Council ,31UH,Street Management,ESS,Environment - Street Scene,Training - environmental campaigns,04/01/2012,1227486,599.00,Keep Britain Tidy,A025681,,
North West Leicestershire District Council ,31UH,Planning & Development,EPP,Environment Planning Policy,Consultancy Services - Planning,04/01/2012,1227839,"7,000.00",Peter Brett Associates T/a Roger Tym & Partners,A028258,,
North West Leicestershire District Council ,31UH,Information Technology,ICT,ICT Services,IT - security,04/01/2012,1227681,"1,914.00",Foursys Ltd,A029908,,
North West Leicestershire District Council ,31UH,Street Management,ENOP,Environment Parks,Maintenance and Repair,04/01/2012,1224986,"1,743.00",GK Developments (Staffs) Limited,A038632,,
North West Leicestershire District Council ,31UH,Planning & Development,EBC,Building Control,Land Charges,04/01/2012,1227646,"1,939.00",Leicestershire County Council,A027423,,
North West Leicestershire District Council ,31UH,Leisure & Culture,SPA,Sport & Physical Activity,Funding payment,04/01/2012,1227679,"9,000.00",Leicestershire & Rutland County FA Ltd,A015166,,
North West Leicestershire District Council ,31UH,Leisure Centres,HPLC,Hood Park Leisure Centre,Leisure - Swimwear and accessories,04/01/2012,1227786,702.00,Zoggs International Ltd,A001833,,
North West Leicestershire District Council ,31UH,Housing Repairs,HRAHRM,HRA Housing Repairs & Maintenance,Consultancy - Property Professional Services,04/01/2012,1227474,"4,568.10",Savills Commercial Limited,A032547,,
North West Leicestershire District Council ,31UH,Street Management,ENOT,Environment Transport,road Maintenance,04/01/2012,1227685,600.00,Leicestershire County Counc,A002693,,
North West Leicestershire District Council ,31UH,Leisure Centres,HPLC,Hood Park Leisure Centre,Water - Treatment,04/01/2012,1227785,715.47,Biolab Uk Limited,A007793,,
North West Leicestershire District Council ,31UH,Leisure Centres,HPLC,Hood Park Leisure Centre,Leisure Equipment,04/01/2012,1227788,646.15,J P Lennard Ltd,A000969,,
North West Leicestershire District Council ,31UH,Environmental Health,EES,Environmental Services,Environment - Monitoring Equipment - Air Quality,04/01/2012,1227807,"2,500.00",TRL,A036596,,
North West Leicestershire District Council ,31UH,Street Management,ENOGT,Environment General Technician,Small civils and plant hire,04/01/2012,1227822,"1,596.78",Cuckoo Gap Limited,A000438,,
North West Leicestershire District Council ,31UH,Environment Directorate,ENVDS,Environment - Directorate Support,Training,04/01/2012,1227875,"1,504.95",Solace Enterprises Ltd,A015641,,
North West Leicestershire District Council ,31UH,Planning & Development,EPP,Environment Planning Policy,Building works,04/01/2012,1227512,610.00,D Walker,A038885,,
North West Leicestershire District Council ,31UH,Housing Repairs,HRAHRM,HRA Housing Repairs & Maintenance,Building - General Maintenance works - Minor framework,04/01/2012,1227925,"3,556.80",Alf Wright Construction Limited,A036239,,
North West Leicestershire District Council ,31UH,Housing Repairs,HRAHRM,HRA Housing Repairs & Maintenance,Construction - Rewire Works,04/01/2012,1227922,"2,207.27",Lovell Respond,A038131,,
North West Leicestershire District Council ,31UH,Housing Repairs,HRAHRM,HRA Housing Repairs & Maintenance,Construction - Rewire Works,04/01/2012,1227921,"2,265.19",Lovell Respond,A038131,,
North West Leicestershire District Council ,31UH,Housing Repairs,HRAHRM,HRA Housing Repairs & Maintenance,Construction - Rewire Works,04/01/2012,1227920,"2,761.27",Lovell Respond,A038131,,
North West Leicestershire District Council ,31UH,Housing Repairs,HRAHRM,HRA Housing Repairs & Maintenance,Construction - Rewire Works,04/01/2012,1227919,"2,032.42",Lovell Respond,A038131,,
North West Leicestershire District Council ,31UH,Housing Repairs,HRAHRM,HRA Housing Repairs & Maintenance,Construction - Rewire Works,04/01/2012,1227918,"2,303.75",Lovell Respond,A038131,,
North West Leicestershire District Council ,31UH,Housing Repairs,HRAHRM,HRA Housing Repairs & Maintenance,Construction - Rewire Works,04/01/2012,1227917,"2,207.27",Lovell Respond,A038131,,
North West Leicestershire District Council ,31UH,Housing Repairs,HRAHRM,HRA Housing Repairs & Maintenance,Construction - Rewire Works,04/01/2012,1227916,"2,194.95",Lovell Respond,A038131,,
North West Leicestershire District Council ,31UH,Housing Repairs,HRAHRM,HRA Housing Repairs & Maintenance,Construction - Rewire Works,04/01/2012,1227915,"2,419.80",Lovell Respond,A038131,,
North West Leicestershire District Council ,31UH,Housing Repairs,HRAHRM,HRA Housing Repairs & Maintenance,Construction - Rewire Works,04/01/2012,1227914,"2,593.60",Lovell Respond,A038131,,
North West Leicestershire District Council ,31UH,Housing Repairs,HRAHRM,HRA Housing Repairs & Maintenance,Construction - Rewire Works,04/01/2012,1227913,"2,277.51",Lovell Respond,A038131,,
North West Leicestershire District Council ,31UH,Housing Repairs,HRAHRM,HRA Housing Repairs & Maintenance,Construction - Rewire Works,04/01/2012,1227912,"2,528.44",Lovell Respond,A038131,,
North West Leicestershire District Council ,31UH,Housing Repairs,HRAHRM,HRA Housing Repairs & Maintenance,Construction - Rewire Works,04/01/2012,1227911,"2,095.91",Lovell Respond,A038131,,
North West Leicestershire District Council ,31UH,Housing Repairs,HRAHRM,HRA Housing Repairs & Maintenance,Construction - Rewire Works,04/01/2012,1227910,"2,207.27",Lovell Respond,A038131,,
North West Leicestershire District Council ,31UH,Housing Repairs,HRAHRM,HRA Housing Repairs & Maintenance,Construction - Rewire Works,04/01/2012,1227909,"2,680.39",Lovell Respond,A038131,,
North West Leicestershire District Council ,31UH,Housing Repairs,HRAHRM,HRA Housing Repairs & Maintenance,Construction - Rewire Works,04/01/2012,1227908,"2,598.36",Lovell Respond,A038131,,
North West Leicestershire District Council ,31UH,Housing Repairs,HRAHRM,HRA Housing Repairs & Maintenance,Construction - Rewire Works,04/01/2012,1227907,"2,025.67",Lovell Respond,A038131,,
North West Leicestershire District Council ,31UH,Housing Repairs,HRAHRM,HRA Housing Repairs & Maintenance,Housing Maintenance - Supply and Fit of Composite Doors and UPVC Frames,04/01/2012,1227970,539.91,I G Doors Limited,A038041,,
North West Leicestershire District Council ,31UH,Housing Repairs,HRAHRM,HRA Housing Repairs & Maintenance,Housing Maintenance - Supply and Fit of Composite Doors and UPVC Frames,04/01/2012,1227973,597.05,I G Doors Limited,A038041,,
North West Leicestershire District Council ,31UH,Housing Repairs,HRAHRM,HRA Housing Repairs & Maintenance,Housing Maintenance - Replacement Windows and Doors,04/01/2012,1227962,520.01,SBP Limited (Trading as Plastal & Permadoor),A036741,,
North West Leicestershire District Council ,31UH,Finance,EXCH,Exchequer Services,Housing Benefits,10/01/2012,1228339,"25,444.08",Rent Allowance Payments,A001381,,
North West Leicestershire District Council ,31UH,Housing Repairs,HRAHRM,HRA Housing Repairs & Maintenance,Waste - Tipping building,11/01/2012,1228266,"1,317.72",Ward Recycling,A035471,,
North West Leicestershire District Council ,31UH,Finance,EXCH,Exchequer Services,IT - software services,11/01/2012,1228306,886.24,Selima Limited,A010859,,
North West Leicestershire District Council ,31UH,Finance,EXCH,Exchequer Services,Recruitment - Agency Broker,11/01/2012,1228382,"8,121.57",Comensura Limited,A036958,,
North West Leicestershire District Council ,31UH,Housing,HRANE,HRA Neighbourhoods & Enforcement,Water - Sewerage services,11/01/2012,1228113,"1,996.36",Severn Trent Water Limited,A001468,,
North West Leicestershire District Council ,31UH,Finance,EXCH,Exchequer Services,Recruitment - Agency Broker,11/01/2012,1228307,"3,855.89",Comensura Limited,A036958,,
North West Leicestershire District Council ,31UH,Information Technology,ICT,ICT Services,IT - Telephone and computing,11/01/2012,1228316,"3,883.34",Virgin Media Business,A008908,,
North West Leicestershire District Council ,31UH,Information Technology,ICT,ICT Services,IT - Telephone and computing,11/01/2012,1228338,"2,049.96",Virgin Media Business,A008908,,
North West Leicestershire District Council ,31UH,Environmental Health,EES,Environmental Services,Plumbing and heating contractors,11/01/2012,1228350,"1,075.50",C V Lane & Son,A000922,,
North West Leicestershire District Council ,31UH,Leisure Centres,HLC,Hermitage Leisure Centre,Leisure - Recreational equipment supplier,11/01/2012,1228366,671.12,Technogym Uk Limited,A001642,,
North West Leicestershire District Council ,31UH,Environmental Health,EES,Environmental Services,Grants,11/01/2012,1228103,"13,710.00",Adaptions,A038668,,
North West Leicestershire District Council ,31UH,Leisure & Culture,CULTIC,Cultural Services TIC,Rent payments,11/01/2012,1228384,"5,228.32",Leicestershire County Council,A000950,,
North West Leicestershire District Council ,31UH,Housing,HRAOPS,HRA Older Persons Service,Water - Sewerage services,11/01/2012,1228112,"1,076.19",Severn Trent Water Limited,A001468,,
North West Leicestershire District Council ,31UH,Housing Repairs,HRAHRM,HRA Housing Repairs & Maintenance,Fuel - solid,11/01/2012,1228356,"2,834.09",Coal4Energy Ltd,A031928,,
North West Leicestershire District Council ,31UH,Street Management,ENOT,Environment Transport,Rent payments,11/01/2012,1228261,"64,534.54",D'Zign Uk Group,A037057,,
North West Leicestershire District Council ,31UH,Housing,HRAPBS,HRA Performance & Business Support,Licensing - Customer Research,11/01/2012,1227684,800.00,Customer Research Technology Ltd,A034754,,
North West Leicestershire District Council ,31UH,Housing,HRACS,HRA Customer Services,Consultancy,11/01/2012,1226885,"1,268.70",ConsultCIH Limited,A038715,,
North West Leicestershire District Council ,31UH,Housing Strategy,HS,Community - Housing Strategy,Accomodation - Bed and Breakfast for Housing Strategy,11/01/2012,1228344,800.00,Pinewood Lodge,A032364,,
North West Leicestershire District Council ,31UH,Housing Strategy,HS,Community - Housing Strategy,Accomodation - Bed and Breakfast for Housing Strategy,11/01/2012,1228345,560.00,Pinewood Lodge,A032364,,
North West Leicestershire District Council ,31UH,Housing Strategy,HS,Community - Housing Strategy,Accomodation - Bed and Breakfast for Housing Strategy,11/01/2012,1228346,560.00,Pinewood Lodge,A032364,,
North West Leicestershire District Council ,31UH,Housing Strategy,HS,Community - Housing Strategy,Accomodation - Bed and Breakfast for Housing Strategy,11/01/2012,1228347,560.00,Pinewood Lodge,A032364,,
North West Leicestershire District Council ,31UH,Housing,HRAHM,HRA Housing Management,Benchmarking services,11/01/2012,1228319,750.00,Housemark Ltd,A033843,,
North West Leicestershire District Council ,31UH,Leisure Centres,HLC,Hermitage Leisure Centre,Events and Festivals,11/01/2012,1228392,680.00,Coalville Basketball Club,A038184,,
North West Leicestershire District Council ,31UH,Housing Strategy,HS,Community - Housing Strategy,Accomodation - Bed and Breakfast for Housing Strategy,11/01/2012,1228224,700.00,Pinewood Lodge,A032364,,
North West Leicestershire District Council ,31UH,Leisure Centres,HLC,Hermitage Leisure Centre,Performing Artist,11/01/2012,1228237,"1,428.44",Universal Services,A038966,,
North West Leicestershire District Council ,31UH,Information Technology,ICT,ICT Services,IT - Equipment,11/01/2012,1227837,"2,500.00",Dell Computer Corporation Ltd,A000470,,
North West Leicestershire District Council ,31UH,Information Technology,ICT,ICT Services,IT - Equipment,11/01/2012,1227838,"1,100.00",Dell Computer Corporation Ltd,A000470,,
North West Leicestershire District Council ,31UH,Property Services,PROPCL,Property Commercial Lettings,Mail Supplies -Franking Machine,11/01/2012,1228097,"2,020.00",Purchase Power,A008204,,
North West Leicestershire District Council ,31UH,Housing,HRAPBS,HRA Performance & Business Support,Training,11/01/2012,1228069,"6,515.39",Hinckley & Bosworth Borough Council,A000770,,
North West Leicestershire District Council ,31UH,Planning & Development,EPP,Environment Planning Policy,Plant and tool hire,11/01/2012,1228134,700.00,JB Tool Hire Ltd,A011490,,
North West Leicestershire District Council ,31UH,Leisure Centres,HPLC,Hood Park Leisure Centre,Building - General Maintenance works - Minor framework,11/01/2012,1224443,939.60,Herbert Baggaley Construction Limited,A036241,,
North West Leicestershire District Council ,31UH,Legal & Democratic,LDELC,Electoral & Land Charges,Small civils and plant hire,11/01/2012,1228235,"1,951.82",Cuckoo Gap Limited,A000438,,
North West Leicestershire District Council ,31UH,Street Management,ENOT,Environment Transport,Vehicle Repairs - Trucks,11/01/2012,1228265,607.46,Digraph Transport Supplies Ltd,A000486,,
North West Leicestershire District Council ,31UH,Leisure Centres,HLC,Hermitage Leisure Centre,Alarms - Fire and Security,11/01/2012,1228119,709.22,ADT Fire And Security,A000021,,
North West Leicestershire District Council ,31UH,Information Technology,ICT,ICT Services,IT - Computer Equipment,11/01/2012,1228234,"2,997.32",ComputerLand UK Plc,A031430,,
North West Leicestershire District Council ,31UH,Street Management,ENOT,Environment Transport,Gas - Heating,11/01/2012,1228393,580.84,Calor Gas Limited,A032686,,
North West Leicestershire District Council ,31UH,Housing Repairs,HRAHRM,HRA Housing Repairs & Maintenance,Gas & Electricity - Boiler replacement,11/01/2012,1228154,"2,011.67",Lakers UK,A031787,,
North West Leicestershire District Council ,31UH,Housing Repairs,HRAHRM,HRA Housing Repairs & Maintenance,Gas & Electricity - Boiler replacement,11/01/2012,1228189,576.30,Lakers UK,A031787,,
North West Leicestershire District Council ,31UH,Housing Repairs,HRAHRM,HRA Housing Repairs & Maintenance,Builders - Building Maintenance,11/01/2012,1228218,792.00,J & S Seddon Ltd,A035827,,
North West Leicestershire District Council ,31UH,Housing Repairs,HRAHRM,HRA Housing Repairs & Maintenance,Builders - Building Maintenance,11/01/2012,1228219,"2,056.00",J & S Seddon Ltd,A035827,,
North West Leicestershire District Council ,31UH,Information Technology,ICT,ICT Services,Photocopiers and consumables,16/01/2012,1228718,"1,118.46",The Danwood Group Ltd,A001301,,
North West Leicestershire District Council ,31UH,Housing Repairs,HRAHRM,HRA Housing Repairs & Maintenance,Housing Repairs,16/01/2012,1228713,"10,500.00",Collective Enterprises Ltd,A036453,,
North West Leicestershire District Council ,31UH,Finance,FINPLA,Financial Planning,HRA subsidy,16/01/2012,1228708,"10,000.00",Department for Communities & Local Government,A028518,,
North West Leicestershire District Council ,31UH,Finance,EXCH,Exchequer Services,Income Tax and National Insurance Contribution,16/01/2012,1228712,"458,204.00",Inland Revenue,A027321,,
North West Leicestershire District Council ,31UH,Finance,EXCH,Exchequer Services,NNDR Contribution,16/01/2012,1228721,"6,898.46",Department for Communities & Local Government,A028518,,
North West Leicestershire District Council ,31UH,Housing Repairs,HRAHRM,HRA Housing Repairs & Maintenance,Fuel - solid,18/01/2012,1228702,"1,533.15",Coal4Energy Ltd,A031928,,
North West Leicestershire District Council ,31UH,Legal & Democratic,LDLS,Legal Services,Consultancy,18/01/2012,1228733,537.50,39 Essex Street,A039035,,
North West Leicestershire District Council ,31UH,Neighbourhoods & Communities,NACN,N & C Neighbourhoods,Grants,18/01/2012,1228445,"3,319.00",Age Concern Leicestershire & Rutland (Welfare services) ltd,A027552,,
North West Leicestershire District Council ,31UH,Neighbourhoods & Communities,NACN,N & C Neighbourhoods,Grants,18/01/2012,1228446,"3,500.00",South and West Leicestershire,A037854,,
North West Leicestershire District Council ,31UH,Environmental Health,EES,Environmental Services,Grants,18/01/2012,1228752,561.60,Michael Peers Builders,A039000,,
North West Leicestershire District Council ,31UH,Leisure Centres,HPLC,Hood Park Leisure Centre,Energy - Electricity - Contract 1,18/01/2012,1228601,"1,745.38",Southern Electric,A030266,,
North West Leicestershire District Council ,31UH,Leisure Centres,HPLC,Hood Park Leisure Centre,Water - Sewerage services,18/01/2012,1228603,930.04,Severn Trent Water Limited,A001468,,
North West Leicestershire District Council ,31UH,Planning & Development,ECP,Environment Community Planning,Training,18/01/2012,1228751,"1,372.92",Hinckley & Bosworth Borough Council,A000770,,
North West Leicestershire District Council ,31UH,Finance,EXCH,Exchequer Services,Debt Collection,18/01/2012,1228778,"1,060.27",Kings Armoured Security Services Ltd,A004468,,
North West Leicestershire District Council ,31UH,Finance,EXCH,Exchequer Services,Electricity - Supply for contract 4,18/01/2012,1228801,"19,719.50",British Gas Business,A034733,,
North West Leicestershire District Council ,31UH,Leisure Centres,HLC,Hermitage Leisure Centre,Rent payments,18/01/2012,1228617,"4,093.47",Leicestershire County Council,A000950,,
North West Leicestershire District Council ,31UH,Planning & Development,ECP,Environment Community Planning,Rent payments,18/01/2012,1228753,705.84,Leicestershire County Council,A000950,,
North West Leicestershire District Council ,31UH,Housing Repairs,HRAHRM,HRA Housing Repairs & Maintenance,Fuel servicing (Hsg Maintenance),18/01/2012,1228449,"1,439.44",Elite Sweep Service,A035675,,
North West Leicestershire District Council ,31UH,Property Services,PROPFM,Property Facilities Management,Energy - Electricity - Contract 1,18/01/2012,1228592,"3,848.95",Southern Electric,A030266,,
North West Leicestershire District Council ,31UH,Leisure Centres,HLC,Hermitage Leisure Centre,Energy - Electricity - Contract 1,18/01/2012,1228599,"1,957.57",Southern Electric,A030266,,
North West Leicestershire District Council ,31UH,Housing Repairs,HRAHRM,HRA Housing Repairs & Maintenance,Fuel - solid,18/01/2012,1228772,"5,792.24",Coal4Energy Ltd,A031928,,
North West Leicestershire District Council ,31UH,Finance,EXCH,Exchequer Services,Recruitment - Agency Broker,18/01/2012,1228790,"9,358.83",Comensura Limited,A036958,,
North West Leicestershire District Council ,31UH,Housing,HRAPBS,HRA Performance & Business Support,Tenants Contents Insurance,18/01/2012,1228798,"10,844.80",Jardine Lloyd Thompson,A037657,,
North West Leicestershire District Council ,31UH,Information Technology,ICT,ICT Services,Paper,18/01/2012,1228420,541.45,Antalis McNaughton Limited,A038178,,
North West Leicestershire District Council ,31UH,Leisure Centres,HLC,Hermitage Leisure Centre,Leisure - Recreational equipment supplier,18/01/2012,1228595,"1,345.00",Technogym Uk Limited,A001642,,
North West Leicestershire District Council ,31UH,Street Management,ENOT,Environment Transport,Vehicle Repairs - Road Sweepers,18/01/2012,1228688,815.35,Scarab Sweepers Limited,A001445,,
North West Leicestershire District Council ,31UH,Planning & Development,ECCTV,Environment - Town Centre/CCTV,Security - Provide Monitoring Services in respect of CCTV,18/01/2012,1228321,"4,061.75",Premier Security Services (Midlands) Limited,A038132,,
North West Leicestershire District Council ,31UH,Street Management,ENOT,Environment Transport,Security Services - CCTV Maintenance,18/01/2012,1228744,"1,070.00",Quadrant Security Group Limited,A035493,,
North West Leicestershire District Council ,31UH,Corporate Director,HR,Human Resources,Charity Services - Childcare Vouchers,18/01/2012,1228782,"2,724.17",PES Limited,A035521,,
North West Leicestershire District Council ,31UH,Property Services,PROPFM,Property Facilities Management,Builders - Office Refurb Contract,18/01/2012,1228414,"4,201.00",G F Tomlinson Building Ltd,A015236,,
North West Leicestershire District Council ,31UH,Planning & Development,EDC,Environment - Development Control,Advertising Agency,18/01/2012,1228458,622.54,Euro RSCG Riley,A001395,,
North West Leicestershire District Council ,31UH,Leisure Centres,CDCC,Castle Donington Community College,Portable accommodation,18/01/2012,1228575,509.26,Elliott Group Limited,A005413,,
North West Leicestershire District Council ,31UH,Housing Strategy,HS,Community - Housing Strategy,Accommodation - Bed and Breakfast,18/01/2012,1228775,805.00,The Cedars,A027796,,
North West Leicestershire District Council ,31UH,Street Management,ENOT,Environment Transport,Electricians,18/01/2012,1228409,673.00,Electract Limited,A000548,,
North West Leicestershire District Council ,31UH,Property Services,PROPCL,Property Commercial Lettings,Horticulture - Internal Plants,18/01/2012,1228689,552.50,Urban Planters Leicestershire (limited),A003371,,
North West Leicestershire District Council ,31UH,Neighbourhoods & Communities,NACCS,N & C Community Safety,Policing,18/01/2012,1228704,900.00,Leicestershire Police Authority,A007096,,
North West Leicestershire District Council ,31UH,Housing Strategy,HS,Community - Housing Strategy,Accommodation - Bed and Breakfast,18/01/2012,1228760,660.00,The Cedars,A027796,,
North West Leicestershire District Council ,31UH,Property Services,PROPFM,Property Facilities Management,Builders - Office Refurb Contract,18/01/2012,1228415,"7,457.00",G F Tomlinson Building Ltd,A015236,,
North West Leicestershire District Council ,31UH,Street Management,ENOP,Environment Parks,Grounds Maintenance - Landscaping,18/01/2012,1228421,975.00,Manor Landscapes,A035186,,
North West Leicestershire District Council ,31UH,Information Technology,ICT,ICT Services,IT - Equipment / Consumables,18/01/2012,1228589,982.96,Insight Uk,A021505,,
North West Leicestershire District Council ,31UH,Information Technology,ICT,ICT Services,IT- RSA security fobs,18/01/2012,1228621,517.50,BlueFort Security Limited,A036665,,
North West Leicestershire District Council ,31UH,Housing Repairs,HRAHRM,HRA Housing Repairs & Maintenance,Builders - Building Maintenance,18/01/2012,1228462,565.64,J & S Seddon Ltd,A035827,,
North West Leicestershire District Council ,31UH,Housing Repairs,HRAHRM,HRA Housing Repairs & Maintenance,Builders - Building Maintenance,18/01/2012,1228463,565.64,J & S Seddon Ltd,A035827,,
North West Leicestershire District Council ,31UH,Housing Repairs,HRAHRM,HRA Housing Repairs & Maintenance,Gas & Electricity - Boiler replacement,18/01/2012,1228478,"2,395.00",Lakers UK,A031787,,
North West Leicestershire District Council ,31UH,Housing Repairs,HRAHRM,HRA Housing Repairs & Maintenance,Gas & Electricity - Boiler replacement,18/01/2012,1228479,585.96,Lakers UK,A031787,,
North West Leicestershire District Council ,31UH,Housing Repairs,HRAHRM,HRA Housing Repairs & Maintenance,Gas & Electricity - Boiler replacement,18/01/2012,1228480,955.01,Lakers UK,A031787,,
North West Leicestershire District Council ,31UH,Housing Repairs,HRAHRM,HRA Housing Repairs & Maintenance,Gas & Electricity - Boiler replacement,18/01/2012,1228481,"2,430.68",Lakers UK,A031787,,
North West Leicestershire District Council ,31UH,Housing Repairs,HRAHRM,HRA Housing Repairs & Maintenance,Building - General Maintenance works - Minor framework,18/01/2012,1228482,"5,490.00",Alf Wright Construction Limited,A036239,,
North West Leicestershire District Council ,31UH,Housing Repairs,HRAHRM,HRA Housing Repairs & Maintenance,Builders - Building Maintenance,18/01/2012,1228464,"3,294.10",J & S Seddon Ltd,A035827,,
North West Leicestershire District Council ,31UH,Housing Repairs,HRAHRM,HRA Housing Repairs & Maintenance,Builders - Building Maintenance,18/01/2012,1228465,"3,294.10",J & S Seddon Ltd,A035827,,
North West Leicestershire District Council ,31UH,Housing Repairs,HRAHRM,HRA Housing Repairs & Maintenance,Builders - Building Maintenance,18/01/2012,1228466,"3,294.10",J & S Seddon Ltd,A035827,,
North West Leicestershire District Council ,31UH,Housing Repairs,HRAHRM,HRA Housing Repairs & Maintenance,Gas & Electricity - Boiler replacement,18/01/2012,1228504,"1,768.14",Lakers UK,A031787,,
North West Leicestershire District Council ,31UH,Housing Repairs,HRAHRM,HRA Housing Repairs & Maintenance,Gas & Electricity - Boiler replacement,18/01/2012,1228505,750.00,Lakers UK,A031787,,
North West Leicestershire District Council ,31UH,Housing Repairs,HRAHRM,HRA Housing Repairs & Maintenance,Gas & Electricity - Boiler replacement,18/01/2012,1228506,996.14,Lakers UK,A031787,,
North West Leicestershire District Council ,31UH,Housing Repairs,HRAHRM,HRA Housing Repairs & Maintenance,Building - General Maintenance works - Minor framework,18/01/2012,1228507,"9,000.00",Alf Wright Construction Limited,A036239,,
North West Leicestershire District Council ,31UH,Housing Repairs,HRAHRM,HRA Housing Repairs & Maintenance,Building - General Maintenance works - Minor framework,18/01/2012,1228508,"3,700.00",Alf Wright Construction Limited,A036239,,
North West Leicestershire District Council ,31UH,Housing Repairs,HRAHRM,HRA Housing Repairs & Maintenance,Gas & Electricity - Boiler replacement,18/01/2012,1228509,"2,111.56",Lakers UK,A031787,,
North West Leicestershire District Council ,31UH,Housing Repairs,HRAHRM,HRA Housing Repairs & Maintenance,Gas & Electricity - Boiler replacement,18/01/2012,1228510,"2,581.78",Lakers UK,A031787,,
North West Leicestershire District Council ,31UH,Housing Repairs,HRAHRM,HRA Housing Repairs & Maintenance,Gas & Electricity - Boiler replacement,18/01/2012,1228511,"4,750.39",Lakers UK,A031787,,
North West Leicestershire District Council ,31UH,Housing Repairs,HRAHRM,HRA Housing Repairs & Maintenance,Gas & Electricity - Boiler replacement,18/01/2012,1228513,"1,493.71",Lakers UK,A031787,,
North West Leicestershire District Council ,31UH,Housing Repairs,HRAHRM,HRA Housing Repairs & Maintenance,Gas & Electricity - Boiler replacement,18/01/2012,1228514,"2,211.81",Lakers UK,A031787,,
North West Leicestershire District Council ,31UH,Housing Repairs,HRAHRM,HRA Housing Repairs & Maintenance,Gas & Electricity - Boiler replacement,18/01/2012,1228515,"4,654.19",Lakers UK,A031787,,
North West Leicestershire District Council ,31UH,Housing Repairs,HRAHRM,HRA Housing Repairs & Maintenance,Gas & Electricity - Boiler replacement,18/01/2012,1228516,"1,564.03",Lakers UK,A031787,,
North West Leicestershire District Council ,31UH,Housing Repairs,HRAHRM,HRA Housing Repairs & Maintenance,Gas & Electricity - Boiler replacement,18/01/2012,1228517,"1,849.67",Lakers UK,A031787,,
North West Leicestershire District Council ,31UH,Housing Repairs,HRAHRM,HRA Housing Repairs & Maintenance,Gas & Electricity - Boiler replacement,18/01/2012,1228512,"2,445.31",Lakers UK,A031787,,
North West Leicestershire District Council ,31UH,Housing Repairs,HRAHRM,HRA Housing Repairs & Maintenance,Gas & Electricity - Boiler replacement,18/01/2012,1228666,528.87,Lakers UK,A031787,,
North West Leicestershire District Council ,31UH,Housing Repairs,HRAHRM,HRA Housing Repairs & Maintenance,Gas & Electricity - Boiler replacement,18/01/2012,1228667,"1,716.07",Lakers UK,A031787,,
North West Leicestershire District Council ,31UH,Housing Repairs,HRAHRM,HRA Housing Repairs & Maintenance,Fuel servicing (Hsg Maintenance),18/01/2012,1228674,"1,586.20",Elite Sweep Service,A035675,,
North West Leicestershire District Council ,31UH,Housing Repairs,HRAHRM,HRA Housing Repairs & Maintenance,Fuel servicing (Hsg Maintenance),18/01/2012,1228675,"1,458.00",Elite Sweep Service,A035675,,
North West Leicestershire District Council ,31UH,Neighbourhoods & Communities,NACN,N & C Neighbourhoods,Events and Festivals,25/01/2012,1228917,"4,920.00",Whitwick Community Coffee Shop,A033968,,
North West Leicestershire District Council ,31UH,Leisure Centres,HLC,Hermitage Leisure Centre,Water - Sewerage services,25/01/2012,1228919,"1,262.16",Severn Trent Water Limited,A001468,,
North West Leicestershire District Council ,31UH,Leisure & Culture,CULTYP,Cultural Services Children & YoungPeople,Training,25/01/2012,1228993,"4,098.80",Home-Start NWL,A035295,,
North West Leicestershire District Council ,31UH,Street Management,ENOWM,Environment Waste Management,charges,25/01/2012,1229099,"34,395.01",Leicestershire County Council,A000950,,
North West Leicestershire District Council ,31UH,Leisure & Culture,CULTYP,Cultural Services Children & YoungPeople,Conference & training services,25/01/2012,1229206,"1,800.00",Veronica House Project Let's Break The Cycle,A038729,,
North West Leicestershire District Council ,31UH,Leisure & Culture,CULTYP,Cultural Services Children & YoungPeople,education,25/01/2012,1229095,"3,146.40",The Firebird Trust Ltd,A039074,,
North West Leicestershire District Council ,31UH,Leisure & Culture,CULTYP,Cultural Services Children & YoungPeople,education,25/01/2012,1229092,"3,563.00",Centre for Fun and Families Ltd,A036769,,
North West Leicestershire District Council ,31UH,Leisure & Culture,CULTYP,Cultural Services Children & YoungPeople,Education,25/01/2012,1228998,"255,984.38",LCC Warren Hills Primary School,A028026,,
North West Leicestershire District Council ,31UH,Leisure & Culture,CULTYP,Cultural Services Children & YoungPeople,Grants,25/01/2012,1228992,"7,755.00",Home-Start NWL,A035295,,
North West Leicestershire District Council ,31UH,Housing,HRAHM,HRA Housing Management,Catalogue stocks,25/01/2012,1229192,815.73,ESPO,A000958,,
North West Leicestershire District Council ,31UH,Housing Repairs,HRAHRM,HRA Housing Repairs & Maintenance,Waste - Tipping building,25/01/2012,1228983,966.96,Ward Recycling,A035471,,
North West Leicestershire District Council ,31UH,Leisure Centres,HPLC,Hood Park Leisure Centre,Telecommunication - Line Rental,25/01/2012,1228987,580.83,Virgin Media Business,A035373,,
North West Leicestershire District Council ,31UH,Leisure Centres,HLC,Hermitage Leisure Centre,Water - Sewerage services,25/01/2012,1228988,650.00,Severn Trent Water Limited,A001468,,
North West Leicestershire District Council ,31UH,Finance,FINPLA,Financial Planning,NNDR Contribution,25/01/2012,1229141,"3,624.00",Department for Communities & Local Government,A028518,,
North West Leicestershire District Council ,31UH,Environmental Health,EES,Environmental Services,Energy - Electricity - Contract 1,25/01/2012,1229110,"1,161.87",Southern Electric,A030266,,
North West Leicestershire District Council ,31UH,Environmental Health,EES,Environmental Services,Plumbing and heating contractors,25/01/2012,1229131,"2,344.50",C V Lane & Son,A000922,,
North West Leicestershire District Council ,31UH,Leisure & Culture,CULTYP,Cultural Services Children & YoungPeople,Nursery Charges,25/01/2012,1228997,"4,444.65",LCC Warren Hills Primary School,A028026,,
North West Leicestershire District Council ,31UH,Corporate Director,HR,Human Resources,Criminal Records Checks,25/01/2012,1229140,704.00,Criminal Records Bureau,A027625,,
North West Leicestershire District Council ,31UH,Housing,HRAHM,HRA Housing Management,Catalogue stocks,25/01/2012,1229182,619.35,ESPO,A000958,,
North West Leicestershire District Council ,31UH,Leisure & Culture,CULTYP,Cultural Services Children & YoungPeople,Partnership payment. ,25/01/2012,1229205,"4,822.50",Living Without Abuse,A032786,,
North West Leicestershire District Council ,31UH,Leisure Centres,HPLC,Hood Park Leisure Centre,Water - Sewerage services,25/01/2012,1228989,800.00,Severn Trent Water Limited,A001468,,
North West Leicestershire District Council ,31UH,Communications,CP,Corporate - Communications,Mail Services - Franking Machines,25/01/2012,1229019,"18,000.00",Neopost Limited,A000079,,
North West Leicestershire District Council ,31UH,Environmental Health,EEHL,Environmental Health & Licensing,Animals - Boarding Kennels,25/01/2012,1229096,"1,372.54",College Garth Boarding Kennels,A000385,,
North West Leicestershire District Council ,31UH,Finance,FINPLA,Financial Planning,Vehicle Lease,25/01/2012,1229134,"2,717.10",KBC Lease (UK) Ltd,A033050,,
North West Leicestershire District Council ,31UH,Housing,HRAHM,HRA Housing Management,Catalogue stocks,25/01/2012,1229191,604.86,ESPO,A000958,,
North West Leicestershire District Council ,31UH,Street Management,ENOT,Environment Transport,Gas - Heating,25/01/2012,1228874,791.11,Calor Gas Limited,A032686,,
North West Leicestershire District Council ,31UH,Planning & Development,EBC,Building Control,Land Charges,25/01/2012,1228909,"1,708.00",Leicestershire County Council,A027423,,
North West Leicestershire District Council ,31UH,Property Services,PROPCL,Property Commercial Lettings,Building - General Maintenance works - Minor framework,25/01/2012,1228913,"1,992.38",Herbert Baggaley Construction Limited,A036241,,
North West Leicestershire District Council ,31UH,Corporate Director,HR,Human Resources,Consultancy - Finance,25/01/2012,1229122,"5,496.40",R W Nelsey Consultancy,A038049,,
North West Leicestershire District Council ,31UH,Finance,FINPLA,Financial Planning,Training,25/01/2012,1229132,"191,861.31",Hinckley & Bosworth Borough Council,A000770,,
North West Leicestershire District Council ,31UH,Information Technology,ICT,ICT Services,IT - ICT Security Services,25/01/2012,1228866,888.00,Sec-1,A036989,,
North West Leicestershire District Council ,31UH,Housing Strategy,HS,Community - Housing Strategy,IT - Maintenance and Training for New Choice Based Lettings System,25/01/2012,1228908,"7,475.00",Abritas Limited,A037979,,
North West Leicestershire District Council ,31UH,Street Management,ENOT,Environment Transport,Fuel ,25/01/2012,1228865,"20,994.87",Pace Petroleum Ltd,A034942,,
North West Leicestershire District Council ,31UH,Leisure & Culture,SPA,Sport & Physical Activity,Web Design - Ashby website,25/01/2012,1228944,"2,700.00",Socius Limited,A031950,,
North West Leicestershire District Council ,31UH,Street Management,ENOT,Environment Transport,Fuel ,25/01/2012,1228865,"20,994.87",Pace Petroleum Ltd,A034942,,
North West Leicestershire District Council ,31UH,Planning & Development,ECP,Environment Community Planning,IT - Web-based learning package,25/01/2012,1229032,"1,500.00",Marshall ACM Limited,A035544,,
North West Leicestershire District Council ,31UH,Environmental Health,EEHL,Environmental Health & Licensing,Pest Control Products,25/01/2012,1228896,686.75,Killgerm Chemicals Ltd,A000890,,
North West Leicestershire District Council ,31UH,Housing,HRAHM,HRA Housing Management,Seminar,25/01/2012,1229213,625.00,The East Midlands TP Forum,A035594,,
North West Leicestershire District Council ,31UH,Street Management,ENOP,Environment Parks,Building Services,25/01/2012,1229198,"5,499.00",T & T Construction,A001625,,
North West Leicestershire District Council ,31UH,Corporate Director,HR,Human Resources,Training,25/01/2012,1229200,"3,060.00",Health Management Ltd,A038840,,
North West Leicestershire District Council ,31UH,Corporate Director,HR,Human Resources,Consultancy,25/01/2012,1229128,"1,354.90",Libby Carter Limited,A033121,,
North West Leicestershire District Council ,31UH,Street Management,ENOP,Environment Parks,Grounds Maintenance - Landscaping,25/01/2012,1229202,"1,452.00",Manor Landscapes,A035186,,
North West Leicestershire District Council ,31UH,Street Management,ENOT,Environment Transport,Engineering - Parts / Supplies,25/01/2012,1228867,542.99,Taylor Engineering & Fabrications Ltd,A036178,,
North West Leicestershire District Council ,31UH,Housing Strategy,HS,Community - Housing Strategy,Consultancy - Housing Strategy,25/01/2012,1228884,871.80,GLHS Limited,A038376,,
North West Leicestershire District Council ,31UH,Leisure Centres,HLC,Hermitage Leisure Centre,Security Services - CCTV Maintenance,25/01/2012,1228900,808.40,Quadrant Security Group Limited,A035493,,
North West Leicestershire District Council ,31UH,Street Management,ENOT,Environment Transport,Fuel ,25/01/2012,1228864,"1,701.75",Pace Petroleum Ltd,A034942,,
North West Leicestershire District Council ,31UH,Housing Strategy,HS,Community - Housing Strategy,Accomodation - Bed and Breakfast for Housing Strategy,25/01/2012,1228907,700.00,Pinewood Lodge,A032364,,
North West Leicestershire District Council ,31UH,Leisure Centres,HPLC,Hood Park Leisure Centre,Subscription - Accreditation Quest Standard,25/01/2012,1228961,"1,450.00",Quest & NBS,A038334,,
North West Leicestershire District Council ,31UH,Housing Strategy,HS,Community - Housing Strategy,Printing - Lot 1 + 3,25/01/2012,1228872,"1,012.97",Leicestershire County Council Central Print,A037238,,
North West Leicestershire District Council ,31UH,Planning & Development,ECCTV,Environment - Town Centre/CCTV,Building Services,25/01/2012,1229014,584.12,John Merison BMC Ltd,A001092,,
North West Leicestershire District Council ,31UH,Housing Strategy,HS,Community - Housing Strategy,Accomodation - Bed and Breakfast for Housing Strategy,25/01/2012,1229022,700.00,Pinewood Lodge,A032364,,
North West Leicestershire District Council ,31UH,Neighbourhoods & Communities,NACCS,N & C Community Safety,IT - Scanning equipment,25/01/2012,1229034,"6,375.00",Idox Software Ltd,A034157,,
North West Leicestershire District Council ,31UH,Property Services,PROPFM,Property Facilities Management,Builders - Office Refurb Contract,25/01/2012,1229058,"46,698.01",G F Tomlinson Building Ltd,A015236,,
North West Leicestershire District Council ,31UH,Information Technology,ICT,ICT Services,IT - Equipment and Services,25/01/2012,1229123,"3,928.50",Viglen Limited,A036738,,
North West Leicestershire District Council ,31UH,Street Management,ENOWM,Environment Waste Management,Waste Management,25/01/2012,1228910,760.00,ESE Limited,A001253,,
North West Leicestershire District Council ,31UH,Street Management,ENOP,Environment Parks,Horticulture - Plants,25/01/2012,1229201,"1,053.15",Manor farm Nurseries,A034561,,
North West Leicestershire District Council ,31UH,Housing,HRAHM,HRA Housing Management,Seminar,25/01/2012,1229212,550.00,The East Midlands TP Forum,A035594,,
North West Leicestershire District Council ,31UH,Housing Strategy,HS,Community - Housing Strategy,Homelessness - Bed & Breakfast,25/01/2012,1229107,560.00,Leicester City Hotel,A027377,,
North West Leicestershire District Council ,31UH,Finance,FINPLA,Financial Planning,Subscriptions,25/01/2012,1229133,"10,325.50",Audit Commission,A000110,,
North West Leicestershire District Council ,31UH,Housing Repairs,HRAHRM,HRA Housing Repairs & Maintenance,Building Services - Housing - HPIP 9 - 10,25/01/2012,1228933,"4,960.56",Apollo Property Services Group Limited,A036945,,
North West Leicestershire District Council ,31UH,Housing Repairs,HRAHRM,HRA Housing Repairs & Maintenance,Building Services - Housing - HPIP 9 - 10,25/01/2012,1228934,"4,960.56",Apollo Property Services Group Limited,A036945,,
North West Leicestershire District Council ,31UH,Housing Repairs,HRAHRM,HRA Housing Repairs & Maintenance,Building Services - Housing - HPIP 9 - 10,25/01/2012,1228935,"4,960.56",Apollo Property Services Group Limited,A036945,,
North West Leicestershire District Council ,31UH,Housing Repairs,HRAHRM,HRA Housing Repairs & Maintenance,Building Services - Housing - HPIP 9 - 10,25/01/2012,1228936,"4,846.50",Apollo Property Services Group Limited,A036945,,
North West Leicestershire District Council ,31UH,Housing Repairs,HRAHRM,HRA Housing Repairs & Maintenance,Building Services - Housing - HPIP 9 - 10,25/01/2012,1228937,"4,312.02",Apollo Property Services Group Limited,A036945,,
North West Leicestershire District Council ,31UH,Housing Repairs,HRAHRM,HRA Housing Repairs & Maintenance,Building Services - Housing - HPIP 9 - 10,25/01/2012,1228924,"4,834.32",Apollo Property Services Group Limited,A036945,,
North West Leicestershire District Council ,31UH,Housing Repairs,HRAHRM,HRA Housing Repairs & Maintenance,Building Services - Housing - HPIP 9 - 10,25/01/2012,1228925,"4,171.73",Apollo Property Services Group Limited,A036945,,
North West Leicestershire District Council ,31UH,Housing Repairs,HRAHRM,HRA Housing Repairs & Maintenance,Building Services - Housing - HPIP 9 - 10,25/01/2012,1228926,"4,171.73",Apollo Property Services Group Limited,A036945,,
North West Leicestershire District Council ,31UH,Housing Repairs,HRAHRM,HRA Housing Repairs & Maintenance,Building Services - Housing - HPIP 9 - 10,25/01/2012,1228927,"4,834.32",Apollo Property Services Group Limited,A036945,,
North West Leicestershire District Council ,31UH,Housing Repairs,HRAHRM,HRA Housing Repairs & Maintenance,Building Services - Housing - HPIP 9 - 10,25/01/2012,1228928,"4,313.02",Apollo Property Services Group Limited,A036945,,
North West Leicestershire District Council ,31UH,Housing Repairs,HRAHRM,HRA Housing Repairs & Maintenance,Building Services - Housing - HPIP 9 - 10,25/01/2012,1228929,"4,846.50",Apollo Property Services Group Limited,A036945,,
North West Leicestershire District Council ,31UH,Housing Repairs,HRAHRM,HRA Housing Repairs & Maintenance,Building Services - Housing - HPIP 9 - 10,25/01/2012,1228930,"4,183.47",Apollo Property Services Group Limited,A036945,,
North West Leicestershire District Council ,31UH,Housing Repairs,HRAHRM,HRA Housing Repairs & Maintenance,Building Services - Housing - HPIP 9 - 10,25/01/2012,1228931,"4,154.24",Apollo Property Services Group Limited,A036945,,
North West Leicestershire District Council ,31UH,Housing Repairs,HRAHRM,HRA Housing Repairs & Maintenance,Building Services - Housing - HPIP 9 - 10,25/01/2012,1228932,"4,760.81",Apollo Property Services Group Limited,A036945,,
North West Leicestershire District Council ,31UH,Housing Repairs,HRAHRM,HRA Housing Repairs & Maintenance,Building - General Maintenance works - Minor framework,25/01/2012,1229075,"3,470.00",Alf Wright Construction Limited,A036239,,
North West Leicestershire District Council ,31UH,Housing Repairs,HRAHRM,HRA Housing Repairs & Maintenance,Building Services - Housing - HPIP 9 - 10,25/01/2012,1228922,"5,833.71",Apollo Property Services Group Limited,A036945,,
North West Leicestershire District Council ,31UH,Housing Repairs,HRAHRM,HRA Housing Repairs & Maintenance,Building Services - Housing - HPIP 9 - 10,25/01/2012,1228923,"5,075.49",Apollo Property Services Group Limited,A036945,,
,,,,,,,,"3,686,574.01",,
